{"text_format":"3","workbook":"xlsx","n_sheets":1,"sheets":["岗位信息表1"],"not_rendered":{"defined_names":3},"read":"whole","date_system":"1900"}

{"sheet":"岗位信息表1","index":0,"n_rows":39,"n_cols":37,"rows_kept":39,"merged":[[0,0,0,4],[1,0,1,36],[2,0,3,0],[2,1,3,1],[2,2,3,2],[2,3,3,3],[2,4,3,4],[2,5,3,5],[2,6,2,28],[2,29,3,29],[2,30,2,32],[2,33,3,33],[2,34,3,34],[2,35,3,35],[2,36,3,36],[5,1,27,1],[5,2,27,2],[5,3,15,3],[5,35,15,35],[5,36,37,36],[16,3,18,3],[16,35,18,35],[19,3,25,3],[19,35,25,35],[28,1,35,1],[28,2,35,2],[28,3,35,3],[28,35,35,35],[36,1,37,1],[36,2,37,2],[36,3,37,3]]}
["附件3-1："]
["南京江北新区教育局所属事业单位2026年1月公开招聘教师岗位信息表1"]
["序号","招聘岗位","招聘数量","分组","招聘单位","单位经费性质","招     聘     学    科",{"$nulls":22},"合计","招聘条件",null,null,"用人方式","考试形式和所占比例","备注","政策咨询电话及信息发布网址"]
[{"$nulls":6},"语文","数学","英语","物理","化学","生物","政治","历史","地理","音乐","体育","美术","信息科技","心理","特殊教育","康复专业","孤独症专业","无人机应用技术","机械设计制造","电子信息","展示艺术设计","法律事务","计算机科学与技术",null,"学历","专业","基本条件"]
[1,"高中教师",2,"高中组","南京市第十四中学","全额拨款",{"$nulls":12},1,1,{"$nulls":9},{"$f":"SUM(G5:AC5)","v":2},"本科及以上","符合学科(专业)需求","取得相应学位，具有符合任教学段学科的教师资格证。","编内","笔试占30%，面试占70%（有生课堂占90%、问题答辩占10%。）","报名到校","025-58852254\nhttp://njna.nanjing.gov.cn"]
[2,"初中教师",84,"初中 1 组","南京市扬子第一中学","全额拨款",{"$nulls":3},1,1,{"$nulls":18},2,"本科及以上","符合学科(专业)需求","取得相应学位，具有符合任教学段学科的教师资格证。","编内","笔试占30%，面试占70%（有生课堂占90%、问题答辩占10%。）","合并招聘须报名到组，到岗后区教育局可根据所属学校实际情况，适时进行人员交流","025-58882172\nhttp://njna.nanjing.gov.cn"]
[3,{"$nulls":3},"南京市旭东中学","全额拨款",null,1,null,1,{"$nulls":19},2,"本科及以上","符合学科(专业)需求","取得相应学位，具有符合任教学段学科的教师资格证。","编内","笔试占30%，面试占70%（有生课堂占90%、问题答辩占10%。）"]
[4,{"$nulls":3},"南京市扬子第一中学松杨路分校","全额拨款",{"$nulls":9},1,{"$nulls":13},1,"本科及以上","符合学科(专业)需求","取得相应学位，具有符合任教学段学科的教师资格证。","编内","笔试占30%，面试占70%（有生课堂占90%、问题答辩占10%。）"]
[5,{"$nulls":3},"南京市第二十九中学柳洲东路分校","全额拨款",null,null,1,{"$nulls":9},1,{"$nulls":10},2,"本科及以上","符合学科(专业)需求","取得相应学位，具有符合任教学段学科的教师资格证。","编内","笔试占30%，面试占70%（有生课堂占90%、问题答辩占10%。）"]
[6,{"$nulls":3},"南京市第一中学泰山分校","全额拨款",1,1,{"$nulls":7},1,{"$nulls":13},3,"本科及以上","符合学科(专业)需求","取得相应学位，具有符合任教学段学科的教师资格证。","编内","笔试占30%，面试占70%（有生课堂占90%、问题答辩占10%。）"]
[7,{"$nulls":3},"南京江北新区实验初级中学","全额拨款",{"$nulls":6},1,1,null,null,1,{"$nulls":12},3,"本科及以上","符合学科(专业)需求","取得相应学位，具有符合任教学段学科的教师资格证。","编内","笔试占30%，面试占70%（有生课堂占90%、问题答辩占10%。）"]
[8,{"$nulls":3},"南京市第一中学工业大学初级中学","全额拨款",null,1,{"$nulls":21},1,"本科及以上","符合学科(专业)需求","取得相应学位，具有符合任教学段学科的教师资格证。","编内","笔试占30%，面试占70%（有生课堂占90%、问题答辩占10%。）"]
[9,{"$nulls":3},"南京一中明发滨江南浦路中学","全额拨款",1,1,1,1,{"$nulls":19},4,"本科及以上","符合学科(专业)需求","取得相应学位，具有符合任教学段学科的教师资格证。","编内","笔试占30%，面试占70%（有生课堂占90%、问题答辩占10%。）"]
[10,{"$nulls":3},"南京市第一中学江北新区分校（初中）","全额拨款",null,null,1,1,1,{"$nulls":18},3,"本科及以上","符合学科(专业)需求","取得相应学位，具有符合任教学段学科的教师资格证。","编内","笔试占30%，面试占70%（有生课堂占90%、问题答辩占10%。）"]
[11,{"$nulls":3},"南京（大厂）民办育英第二外国语学校中央商务区学校（初中）","全额拨款",{"$nulls":3},1,{"$nulls":19},1,"本科及以上","符合学科(专业)需求","取得相应学位，具有符合任教学段学科的教师资格证。","编内","笔试占30%，面试占70%（有生课堂占90%、问题答辩占10%。）"]
[12,{"$nulls":3},"南京明道学校研创园学校（初中）","全额拨款",{"$nulls":5},1,1,1,1,1,1,1,1,1,{"$nulls":9},9,"本科及以上","符合学科(专业)需求","取得相应学位，具有符合任教学段学科的教师资格证。","编内","笔试占30%，面试占70%（有生课堂占90%、问题答辩占10%。）"]
[13,null,null,"初中 2 组","南京市金陵中学江北分校","全额拨款",1,1,2,1,1,{"$nulls":18},6,"本科及以上","符合学科(专业)需求","取得相应学位，具有符合任教学段学科的教师资格证。","编内","笔试占30%，面试占70%（有生课堂占90%、问题答辩占10%。）","合并招聘须报名到组，到岗后区教育局可根据所属学校实际情况，适时进行人员交流"]
[14,{"$nulls":3},"南京市第二十九中学天润城分校（初中）","全额拨款",2,3,1,{"$nulls":7},1,{"$nulls":12},7,"本科及以上","符合学科(专业)需求","取得相应学位，具有符合任教学段学科的教师资格证。","编内","笔试占30%，面试占70%（有生课堂占90%、问题答辩占10%。）"]
[15,{"$nulls":3},"南京江北新区浦口外国语学校（初中）","全额拨款",2,1,1,1,{"$nulls":3},1,{"$nulls":15},6,"本科及以上","符合学科(专业)需求","取得相应学位，具有符合任教学段学科的教师资格证。","编内","笔试占30%，面试占70%（有生课堂占90%、问题答辩占10%。）"]
[16,null,null,"初中 3 组","南京市浦口区行知中学","全额拨款",1,1,{"$nulls":21},2,"本科及以上","符合学科(专业)需求","取得相应学位，具有符合任教学段学科的教师资格证。","编内","笔试占30%，面试占70%（有生课堂占90%、问题答辩占10%。）","合并招聘须报名到组，到岗后区教育局可根据所属学校实际情况，适时进行人员交流"]
[17,{"$nulls":3},"南京市浦口区实验学校桥林新城分校","全额拨款",1,1,{"$nulls":21},2,"本科及以上","符合学科(专业)需求","取得相应学位，具有符合任教学段学科的教师资格证。","编内","笔试占30%，面试占70%（有生课堂占90%、问题答辩占10%。）"]
[18,{"$nulls":3},"南京市浦口区汤泉中学","全额拨款",null,null,1,2,1,{"$nulls":8},1,{"$nulls":9},5,"本科及以上","符合学科(专业)需求","取得相应学位，具有符合任教学段学科的教师资格证。","编内","笔试占30%，面试占70%（有生课堂占90%、问题答辩占10%。）"]
[19,{"$nulls":3},"南京市浦口区第三中学","全额拨款",1,1,1,{"$nulls":6},1,1,{"$nulls":12},5,"本科及以上","符合学科(专业)需求","取得相应学位，具有符合任教学段学科的教师资格证。","编内","笔试占30%，面试占70%（有生课堂占90%、问题答辩占10%。）"]
[20,{"$nulls":3},"南京市浦口区第四中学","全额拨款",null,null,1,1,{"$nulls":19},2,"本科及以上","符合学科(专业)需求","取得相应学位，具有符合任教学段学科的教师资格证。","编内","笔试占30%，面试占70%（有生课堂占90%、问题答辩占10%。）"]
[21,{"$nulls":3},"南京市浦口区实验学校（初中）","全额拨款",{"$nulls":6},1,{"$nulls":3},1,{"$nulls":12},2,"本科及以上","符合学科(专业)需求","取得相应学位，具有符合任教学段学科的教师资格证。","编内","笔试占30%，面试占70%（有生课堂占90%、问题答辩占10%。）"]
[22,{"$nulls":3},"南京市中华中学浦口雨山中学","全额拨款",2,1,{"$nulls":8},1,{"$nulls":12},4,"本科及以上","符合学科(专业)需求","取得相应学位，具有符合任教学段学科的教师资格证。","编内","笔试占30%，面试占70%（有生课堂占90%、问题答辩占10%。）"]
[23,null,null,"初中 4 组","南京江北新区特殊教育学校","全额拨款",1,1,{"$nulls":7},1,1,1,1,{"$nulls":10},6,"本科及以上","符合学科(专业)需求","取得相应学位，具有符合任教学段学科的教师资格证。","编内","笔试占30%，面试占70%（模拟课堂占60%、基本功考核占20%、问题答辩占20%。）","报名到校，到岗后区教育局可根据所属学校实际情况，适时进行人员交流"]
[24,null,null,"初中 5 组","南京市浦口区特殊教育学校","全额拨款",2,2,{"$nulls":8},2,{"$nulls":12},6,"本科及以上","符合学科(专业)需求","取得相应学位，具有符合任教学段学科的教师资格证。","编内","笔试占30%，面试占70%（模拟课堂占60%、基本功考核占20%、问题答辩占20%。）","报名到校，到岗后区教育局可根据所属学校实际情况，适时进行人员交流"]
[25,"小学教师",12,"小学组","南京一中江北新区教育集团第一小学","全额拨款",{"$nulls":9},1,{"$nulls":13},1,"本科及以上","符合学科(专业)需求","取得相应学位，具有符合任教学段学科的教师资格证。","编内","笔试占30%，面试占70%（模拟课堂占60%、基本功考核占20%、问题答辩占20%。）","合并招聘须报名到组，到岗后区教育局可根据所属学校实际情况，适时进行人员交流"]
[26,{"$nulls":3},"南京一中江北新区教育集团第二小学","全额拨款",{"$nulls":10},1,{"$nulls":12},1,"本科及以上","符合学科(专业)需求","取得相应学位，具有符合任教学段学科的教师资格证。","编内","笔试占30%，面试占70%（模拟课堂占60%、基本功考核占20%、问题答辩占20%。）"]
[27,{"$nulls":3},"南京市江北芳草园小学","全额拨款",{"$nulls":10},1,null,null,1,{"$nulls":9},{"$f":"SUM(G31:AC31)","v":2},"本科及以上","符合学科(专业)需求","取得相应学位，具有符合任教学段学科的教师资格证。","编内","笔试占30%，面试占70%（模拟课堂占60%、基本功考核占20%、问题答辩占20%。）"]
[28,{"$nulls":3},"南京（大厂）民办育英第二外国语学校中央商务区学校（小学）","全额拨款",{"$nulls":10},1,{"$nulls":12},1,"本科及以上","符合学科(专业)需求","取得相应学位，具有符合任教学段学科的教师资格证。","编内","笔试占30%，面试占70%（模拟课堂占60%、基本功考核占20%、问题答辩占20%。）"]
[29,{"$nulls":3},"南京明道学校研创园学校（小学）","全额拨款",{"$nulls":10},1,{"$nulls":12},1,"本科及以上","符合学科(专业)需求","取得相应学位，具有符合任教学段学科的教师资格证。","编内","笔试占30%，面试占70%（模拟课堂占60%、基本功考核占20%、问题答辩占20%。）"]
[30,{"$nulls":3},"南京市中华中学浦口雨山小学","全额拨款",{"$nulls":9},1,1,null,null,1,{"$nulls":9},3,"本科及以上","符合学科(专业)需求","取得相应学位，具有符合任教学段学科的教师资格证。","编内","笔试占30%，面试占70%（模拟课堂占60%、基本功考核占20%、问题答辩占20%。）"]
[31,{"$nulls":3},"南京市浦口区实验学校桥林新城分校","全额拨款",{"$nulls":10},1,null,1,{"$nulls":10},2,"本科及以上","符合学科(专业)需求","取得相应学位，具有符合任教学段学科的教师资格证。","编内","笔试占30%，面试占70%（模拟课堂占60%、基本功考核占20%、问题答辩占20%。）"]
[32,{"$nulls":3},"南京市浦口区江浦实验小学滨江分校","全额拨款",{"$nulls":10},1,{"$nulls":12},1,"本科及以上","符合学科(专业)需求","取得相应学位，具有符合任教学段学科的教师资格证。","编内","笔试占30%，面试占70%（模拟课堂占60%、基本功考核占20%、问题答辩占20%。）"]
[33,"特殊教育",7,"特教组","南京江北新区特殊教育学校","全额拨款",{"$nulls":14},3,{"$nulls":8},3,"本科及以上","符合学科(专业)需求","取得相应学位，具有符合任教学段学科的教师资格证.","编内","笔试占30%，面试占70%（模拟课堂占60%、基本功考核占20%、问题答辩占20%。）","报名到校，到岗后区教育局可根据所属学校实际情况，适时进行人员交流"]
[34,{"$nulls":3},"南京市浦口区特殊教育学校","全额拨款",{"$nulls":14},1,1,2,{"$nulls":6},4,"本科及以上","符合学科(专业)需求","取得相应学位，具有符合任教学段学科的教师资格证.","编内","笔试占30%，面试占70%（模拟课堂占60%、基本功考核占20%、问题答辩占20%。）","报名到校，到岗后区教育局可根据所属学校实际情况，适时进行人员交流"]
[35,"中职教师",11,"中职组","南京浦口中等专业学校","全额拨款",2,1,null,1,{"$nulls":6},1,{"$nulls":6},1,1,1,1,1,1,11,"硕士研究生及以上","符合学科(专业)需求，其中体育需要足球方向","取得相应学位，具有符合任教学段学科的教师资格证。","编内","笔试占30%，面试占70%（模拟课堂占60%、基本功考核占20%、问题答辩占20%。）","报名到校","025-58287600\nhttp://njna.nanjing.gov.cn"]